bitfinex/quotes_SOLUSD_20250822
["timestamp","ask_amount","ask_price","bid_price","bid_amount"]
[1755893795271,45.44507601,199.22,199.21,4.42465402]
[1755893795944,40.12,199.22,199.21,4.42465402]
[1755893797255,0.06,199.22,199.21,4.42465402]
[1755893797444,40.12,199.22,199.21,9.72973003]
[1755893797644,40.12,199.22,199.21,4.42465402]
[1755893797967,0.06,199.22,199.21,9.72973003]
[1755893798582,0.02902464,199.22,199.21,28.91472319]
[1755893799142,0.06,199.23,199.21,28.91472319]
[1755893799345,0.06,199.23,199.22,10.23168766]
[1755893799781,0.06,199.24,199.22,24.11160481]
[1755893799967,0.06,199.24,199.23,23.60964718]
[1755893801250,0.06,199.24,199.23,23.60365156]
[1755893801882,0.06,199.24,199.23,23.60194395]
[1755893802964,0.06,199.24,199.23,4.41695079]
[1755893803169,0.06,199.24,199.23,29.71695079]
[1755893803368,0.06,199.24,199.23,3.71695079]
[1755893803848,45.40507601,199.24,199.23,3.71695079]
[1755893804648,40.1,199.24,199.23,3.71695079]
[1755893805292,40.1,199.24,199.23,4.41695079]
[1755893805850,40.1,199.24,199.23,3.71695079]
[1755893806082,45.40507601,199.24,199.23,3.71695079]
[1755893806992,40.1,199.24,199.23,4.41695079]
[1755893807683,40.1,199.24,199.23,3.71695079]
[1755893808672,40.1,199.24,199.23,4.41695079]
[1755893809050,40.1,199.24,199.23,3.71695079]
[1755893809667,40.1,199.24,199.23,4.41695079]
[1755893809862,0.06,199.24,199.23,4.41695079]
[1755893810185,40.08,199.24,199.23,0.7]
[1755893810362,40.08,199.24,199.23,4.4098515]
[1755893811471,46.09507601,199.24,199.23,3.7098515]
[1755893812090,46.09507601,199.24,199.23,3.70953567]
[1755893814068,46.09507601,199.24,199.19,0.03]
[1755893814277,5.30507601,199.2,199.19,0.03]
[1755893814465,45.30507601,199.2,199.19,3.74200339]
[1755893814667,46.01507601,199.2,199.19,0.03]
[1755893814891,48.02669301,199.2,199.19,0.03]
[1755893815265,42.721617,199.2,199.19,0.03]
[1755893815577,42.011617,199.2,199.19,0.03]
[1755893815897,46.01507601,199.2,199.19,0.03]
[1755893820300,59.61067002,199.2,199.19,0.03]
[1755893820611,59.61067002,199.2,199.18,0.03]
[1755893820612,13.59559401,199.19,199.18,0.03]
[1755893820932,19.59067002,199.19,199.18,0.03]
[1755893821091,0.28432314,199.15,199.14,0.03]
[1755893821292,0.28432314,199.13,199.12,0.03]
[1755893821504,0.28432314,199.11,199.01,0.7]
[1755893821711,50.61015202,199.1,199.01,0.7]
[1755893821913,50.61015202,199.1,199.02,0.7]
[1755893822122,51.30015202,199.1,199.02,0.7]
[1755893822295,51.30015202,199.1,198.99,5.30507601]
[1755893822491,51.30015202,199.1,199.03,0.7]
[1755893823113,65.18006917,199.1,198.99,5.30507601]
[1755893823306,65.18006917,199.1,199.03,0.7]
[1755893824418,50.61015202,199.1,199.04,0.7]
[1755893824619,51.30015202,199.1,199.04,0.7]
[1755893824915,50.61015202,199.1,199.05,0.73]
[1755893825420,5.30507601,199.1,199.07,0.73]
[1755893825592,40.0,199.1,199.09,0.73]
[1755893825789,40.0,199.1,199.09,4.44409762]
[1755893826017,45.30507601,199.1,199.09,3.74409762]
[1755893826192,45.30507601,199.1,199.09,0.03]
[1755893826995,40.0,199.1,199.09,0.73]
[1755893827202,45.30507601,199.1,199.09,0.73]
[1755893827406,40.0,199.1,199.09,0.73]
[1755893827606,45.30507601,199.1,199.09,0.73]
[1755893828225,45.30507601,199.1,199.09,0.03]
[1755893828526,45.99507601,199.1,199.09,0.03]
[1755893829130,26.0,199.14,199.09,0.03]
[1755893829311,5.30507601,199.1,199.09,0.03]
[1755893829515,40.0,199.1,199.09,0.03]
[1755893829696,45.30507601,199.1,199.09,0.03]
[1755893830094,40.0,199.1,199.09,0.73]
[1755893830715,40.0,199.1,199.09,4.44042257]
[1755893831739,5.30507601,199.11,199.09,4.44042257]
[1755893831938,5.30507601,199.11,199.1,4.41042257]
[1755893832139,45.28507601,199.11,199.1,4.41042257]
[1755893833452,45.28507601,199.11,199.1,3.70934491]
[1755893833636,39.98,199.11,199.1,3.70934491]
[1755893833832,45.28507601,199.11,199.1,3.70934491]
[1755893836454,45.28507601,199.11,199.09,0.03]
[1755893836766,45.28507601,199.11,199.1,3.7104216]
[1755893837334,45.28507601,199.11,199.1,3.71084186]
[1755893837579,45.28507601,199.11,199.09,0.03]
[1755893837749,5.30507601,199.1,199.09,0.03]
[1755893837944,5.30507601,199.1,199.09,3.74063361]
[1755893839756,5.99507601,199.1,199.09,0.03]
[1755893841047,41.99273,199.11,199.09,0.03]
[1755893841267,39.98,199.1,199.09,0.03]
[1755893841442,45.28507601,199.1,199.09,0.03]
[1755893841646,45.28507601,199.1,199.09,0.73]
[1755893842054,39.98,199.1,199.09,0.73]
[1755893842254,45.28507601,199.1,199.09,0.73]
[1755893842554,39.98,199.1,199.09,0.73]
[1755893843473,5.30507601,199.12,199.09,4.44057353]
[1755893843777,39.96,199.11,199.1,4.41057353]
[1755893845367,45.26507601,199.11,199.1,3.71057353]
[1755893845548,45.26507601,199.11,199.09,0.03]
[1755893845753,5.30507601,199.1,199.09,0.03]
[1755893845982,45.26507601,199.11,199.09,3.74613429]
[1755893846157,45.26507601,199.11,199.1,3.71603703]
[1755893846366,45.26507601,199.11,199.1,3.716149]
[1755893847691,0.06,199.14,199.1,4.366149]
[1755893847863,39.96,199.13,199.11,4.366149]
[1755893848060,0.06,199.14,199.12,4.366149]
[1755893848373,0.06,199.14,199.13,9.02122501]
[1755893848556,0.06,199.14,199.13,9.67122501]
[1755893849179,5.36507601,199.14,199.13,3.716149]
[1755893849383,0.06,199.14,199.13,3.716149]
[1755893850164,0.06,199.14,199.13,4.366149]
[1755893850488,0.06,199.14,199.13,3.716149]
[1755893851387,6.07507601,199.14,199.13,3.716149]
[1755893852564,6.07507601,199.14,199.09,0.03]
[1755893852565,19.95499316,199.14,199.09,0.03]
[1755893852766,5.30507601,199.1,199.09,0.03]
[1755893852977,45.24507601,199.1,199.09,3.75407161]
[1755893853207,45.95507601,199.1,199.09,3.75407161]
[1755893854100,45.24507601,199.1,199.09,3.75407161]
[1755893854308,3.754072,199.12,199.09,3.75407161]
[1755893854462,39.94,199.11,199.09,0.03]
[1755893854665,5.30507601,199.1,199.09,0.03]
[1755893854979,5.30507601,199.1,199.09,3.7567431]
[1755893855168,5.30507601,199.1,199.09,3.75704844]
[1755893855375,5.30507601,199.1,199.09,0.03]
[1755893855577,5.30507601,199.1,199.09,3.75768991]
[1755893855768,5.61507601,199.1,199.09,3.75768991]
[1755893856088,5.30507601,199.1,199.09,3.75768991]
[1755893856666,5.30507601,199.1,199.09,4.40768991]
[1755893856886,5.30507601,199.1,199.09,3.75768991]
[1755893858464,30.09839514,199.14,199.09,4.40768991]
[1755893858679,5.30507601,199.1,199.09,0.68]
[1755893858890,45.24507601,199.1,199.09,3.76425923]
[1755893859592,3.814072,199.14,199.09,4.41425923]
[1755893859764,5.30507601,199.12,199.1,3.73425923]
[1755893859965,39.94,199.13,199.11,3.73425923]
[1755893860194,39.94,199.13,199.1,0.65]
[1755893860195,5.30507601,199.12,199.1,0.65]
[1755893860496,39.94,199.13,199.11,3.73450324]
[1755893860696,39.94,199.13,199.12,3.73450513]
[1755893861395,45.95507601,199.13,199.12,3.73450513]
[1755893861884,59.55067002,199.13,199.12,3.73450513]
[1755893862084,59.83499316,199.13,199.12,3.73450513]
[1755893862297,59.83499316,199.13,199.12,3.73722541]
[1755893862668,54.52991715,199.13,199.12,3.73722541]
[1755893862978,59.83499316,199.13,199.12,3.73722541]
[1755893863175,59.83499316,199.13,199.09,0.03]
[1755893863374,0.71,199.12,199.1,3.73747789]
[1755893863587,39.92,199.11,199.09,0.03]
[1755893863797,39.92,199.11,199.1,3.73916887]
[1755893864472,45.22507601,199.11,199.1,3.73916887]
[1755893864892,45.93507601,199.11,199.1,3.73916887]
[1755893866683,45.22507601,199.11,199.1,3.73916887]
[1755893866896,3.739169,199.13,199.1,3.73916887]
[1755893867068,5.30507601,199.11,199.09,0.03]
[1755893867263,26.77,199.14,199.09,0.03]
[1755893867264,45.22507601,199.1,199.09,0.03]
[1755893867506,45.22507601,199.1,199.09,4.41986982]
[1755893867904,45.22507601,199.1,199.09,3.76986982]
[1755893868210,45.22507601,199.1,199.09,4.41986982]
[1755893868771,5.30507601,199.1,199.09,4.41986982]
[1755893868994,45.22507601,199.1,199.09,4.41986982]
[1755893869925,45.22507601,199.1,199.09,3.76986982]
[1755893870277,39.92,199.1,199.09,3.76986982]
[1755893870504,45.22507601,199.1,199.09,3.76986982]
[1755893871181,51.24015202,199.1,199.09,3.76986982]
[1755893872581,51.24015202,199.1,199.09,0.03]
[1755893872796,51.24015202,199.1,199.09,3.7743142]
[1755893873219,51.24015202,199.1,199.09,3.7742643]
[1755893873507,4.05419314,199.12,199.09,4.42442699]
[1755893873508,3.76987,199.12,199.09,4.42442699]
[1755893873712,5.30507601,199.1,199.09,0.68]
[1755893873897,5.30507601,199.1,199.09,3.77407625]
[1755893875519,5.30507601,199.1,199.09,4.42407625]
[1755893875694,45.20507601,199.1,199.09,4.42407625]
[1755893876919,39.9,199.1,199.09,4.42407625]
[1755893877295,0.06,199.12,199.09,4.42407625]
[1755893877485,39.9,199.11,199.1,4.45407625]
[1755893878399,0.06,199.12,199.1,4.45407625]
[1755893878713,0.06,199.12,199.11,3.74065069]
[1755893878918,39.96,199.12,199.11,3.74065069]
[1755893879417,39.96,199.12,199.11,4.45065069]
[1755893879606,45.26507601,199.12,199.11,3.74065069]
[1755893879911,39.96,199.12,199.11,4.45065069]
[1755893880119,0.06,199.14,199.11,9.7557267]
[1755893880285,39.96,199.14,199.13,5.30507601]
[1755893880489,39.96,199.14,199.13,3.74065069]
[1755893881084,39.96,199.14,199.13,9.0457267]
[1755893881321,39.96,199.14,199.11,5.30507601]
[1755893881510,5.99507601,199.13,199.12,3.73829541]
[1755893881690,5.30507601,199.13,199.12,3.73829541]
[1755893882021,45.26507601,199.14,199.12,3.73829541]
[1755893882218,45.26507601,199.14,199.13,3.73829541]
[1755893882523,39.96,199.14,199.13,3.73829541]
[1755893884433,39.94,199.14,199.13,9.04337142]
[1755893884799,39.94,199.14,199.13,3.73829541]
[1755893885129,0.06,199.14,199.13,3.73829541]
[1755893885319,39.94,199.14,199.13,3.73829541]
[1755893885508,39.94,199.14,199.13,9.04337142]
[1755893885828,0.06,199.14,199.13,3.73829541]
[1755893886009,0.06,199.14,199.13,9.03958134]
[1755893886790,0.06,199.14,199.13,22.63517535]
[1755893887012,0.01985671,199.16,199.15,26.0]
[1755893887327,0.01985671,199.16,199.15,35.03958134]
[1755893887528,0.01985671,199.16,199.15,48.91949849]
[1755893888025,0.01985671,199.16,199.15,49.26576369]
[1755893888401,0.01985671,199.16,199.15,45.18499316]
[1755893888728,0.01985671,199.16,199.15,49.25648921]
[1755893889095,0.01985671,199.16,199.15,52.9793695]
[1755893889497,0.01985671,199.16,199.15,48.90787345]
[1755893890106,0.06,199.18,199.15,48.9056535]
[1755893890309,0.06,199.18,199.17,5.30507601]
[1755893890512,0.06,199.18,199.17,9.02352109]
[1755893890902,0.06,199.18,199.17,22.90343824]
[1755893892034,0.06,199.24,199.2,26.0]
[1755893892238,0.06,199.24,199.23,5.30507601]
[1755893892423,0.06,199.24,199.23,9.02352109]
[1755893893843,0.06,199.24,199.23,3.71844508]
[1755893894017,0.06,199.24,199.23,9.02352109]
[1755893894425,0.75,199.24,199.23,3.71844508]
[1755893896643,0.06,199.24,199.23,3.71844508]
[1755893896947,0.75,199.24,199.23,3.71844508]
[1755893897749,0.06,199.24,199.23,9.02352109]
[1755893898146,0.06,199.24,199.23,3.71844508]
[1755893899022,0.75,199.24,199.23,3.69704512]
[1755893899431,0.75,199.24,199.21,26.0]
[1755893899629,0.06,199.24,199.22,3.69567361]
[1755893899862,0.69,199.23,199.21,26.0]
[1755893900041,0.69,199.23,199.22,3.69443896]
[1755893900236,0.06,199.24,199.22,3.69443896]
[1755893900447,0.75,199.24,199.23,3.69443896]
[1755893900753,0.06,199.24,199.23,3.69443896]
[1755893900940,0.06,199.24,199.23,8.99951497]
[1755893901932,0.06,199.24,199.23,5.30507601]
[1755893902142,0.06,199.24,199.23,8.99874823]
[1755893904367,0.75,199.24,199.23,3.69367222]
[1755893905434,0.06,199.24,199.23,3.69367222]
[1755893905736,0.06,199.24,199.23,8.99874823]
[1755893906344,0.06,199.24,199.23,3.69367222]
[1755893906660,0.75,199.24,199.23,3.69367222]
[1755893907459,6.05507601,199.24,199.23,3.69367222]
[1755893908045,0.75,199.24,199.23,3.69296695]
[1755893908250,0.06,199.24,199.23,3.69296695]
[1755893908448,0.06,199.24,199.23,3.69298306]
[1755893908759,0.77,199.24,199.23,3.69298306]
[1755893910054,0.06,199.24,199.23,3.69298306]
[1755893910365,0.77,199.24,199.23,3.69298306]
[1755893910549,6.07507601,199.24,199.23,3.69298306]
[1755893911068,6.07507601,199.24,199.23,3.69393567]
[1755893916757,0.77,199.24,199.23,3.69393567]
[1755893916957,6.07507601,199.24,199.23,3.70037474]
[1755893917873,6.07507601,199.24,199.23,3.7023233]
[1755893922099,0.77,199.24,199.23,3.7023233]
[1755893922284,6.07507601,199.24,199.23,3.7023233]
[1755893925961,45.87507601,199.24,199.18,0.03]
[1755893926162,45.16507601,199.24,199.19,3.7128456]
[1755893926474,0.71,199.23,199.2,3.7128456]
[1755893926675,0.71,199.22,199.21,3.71368392]
[1755893927192,6.01507601,199.22,199.21,3.71368392]
[1755893928981,11.32015202,199.22,199.21,2.99368392]
[1755893930289,6.01507601,199.22,199.21,2.99368392]
[1755893931197,25.20006917,199.22,199.21,2.99368392]
[1755893931370,25.20006917,199.22,199.18,0.03]
[1755893931571,5.30507601,199.19,199.18,0.03]
[1755893931766,45.08507601,199.19,199.18,0.03]
[1755893931972,45.79507601,199.19,199.18,0.03]
[1755893932283,39.78,199.19,199.18,0.03]
[1755893932467,45.08507601,199.19,199.18,0.03]
[1755893932671,45.79507601,199.19,199.18,0.03]
[1755893934668,40.49,199.19,199.18,0.03]
[1755893934886,45.79507601,199.19,199.18,0.03]
[1755893935079,40.49,199.19,199.18,0.03]
[1755893935288,45.08507601,199.19,199.18,0.03]
[1755893935984,45.79507601,199.19,199.18,0.03]
[1755893939391,40.49,199.19,199.18,0.03]
[1755893939589,45.79507601,199.19,199.18,0.03]
[1755893940180,59.67499316,199.19,199.16,0.03]
[1755893940372,31.30507601,199.17,199.16,0.03]
[1755893940694,71.08507601,199.17,199.16,0.03]
[1755893940899,71.78507601,199.17,199.16,0.03]
[1755893941091,73.79709801,199.17,199.16,3.74584127]
[1755893941296,87.67701516,199.17,199.16,3.74584127]
[1755893941478,0.28432314,199.15,199.14,0.03]
[1755893941680,24.49006917,199.11,199.1,0.03]
[1755893941886,64.95006917,199.11,199.1,0.03]
[1755893942087,54.33991715,199.11,199.1,0.03]
[1755893942288,66.96279917,199.11,199.1,0.03]
[1755893942489,47.77780601,199.11,199.1,0.03]
[1755893943706,53.08288202,199.11,199.1,0.03]
[1755893943890,47.77780601,199.11,199.1,0.03]
[1755893944092,13.32288202,199.11,199.1,0.03]
[1755893944485,53.10288202,199.11,199.1,0.03]
[1755893944800,47.79780601,199.11,199.1,0.03]
[1755893945177,47.07780601,199.11,199.1,0.03]
[1755893945481,45.06507601,199.11,199.1,0.03]
[1755893945700,47.77750301,199.11,199.1,0.03]
[1755893946199,8.01750301,199.11,199.1,0.03]
[1755893946402,47.77750301,199.11,199.1,0.03]
[1755893946787,53.08257902,199.11,199.1,0.03]
[1755893947604,66.96249617,199.11,199.1,0.03]
[1755893947804,66.96249617,199.11,199.09,0.03]
[1755893947805,39.59559401,199.1,199.08,0.03]
[1755893948107,45.06507601,199.09,199.08,0.03]
[1755893948315,45.76507601,199.09,199.08,0.03]
[1755893951009,45.76507601,199.09,198.98,0.1]
[1755893951010,39.87991715,199.06,198.98,0.78]
[1755893951301,13.87991715,199.05,198.98,0.78]
[1755893951608,5.30507601,198.99,198.98,0.1]
[1755893951811,45.06507601,198.99,198.98,0.1]
[1755893952686,39.76,198.99,198.98,0.78]
[1755893952889,39.76,198.99,198.98,0.1]
[1755893953112,45.06507601,198.99,198.98,0.1]
[1755893953414,45.06507601,198.99,198.98,0.78]
[1755893953598,45.06507601,198.99,198.98,0.1]
[1755893955132,39.76,198.99,198.98,0.1]
[1755893955295,45.06507601,198.99,198.98,0.78]
[1755893956817,139.70507601,199.1,198.98,0.78]
[1755893956818,0.7,199.08,198.98,0.78]
[1755893957122,5.30507601,199.0,198.98,0.78]
[1755893957324,39.76,198.99,198.98,0.1]
[1755893957898,39.76,198.99,198.98,4.47162979]
[1755893958620,39.76,199.01,198.98,9.7767058]
[1755893958923,5.30507601,199.04,198.99,9.6767058]
[1755893959111,39.76,199.03,199.0,3.69162979]
[1755893959312,39.76,199.03,198.98,0.1]
[1755893959619,39.76,199.03,199.01,0.68]
[1755893960223,39.76,199.05,199.02,8.99511716]
[1755893960425,39.76,199.05,199.03,4.37004115]
[1755893960729,39.76,199.05,199.04,0.68]
[1755893961922,39.76,199.07,199.04,4.37113943]
[1755893962106,39.76,199.07,199.05,0.68]
[1755893963709,39.76,199.07,199.06,0.68]
[1755893964124,39.76,199.07,199.06,9.6776345]
[1755893964498,39.76,199.07,199.06,4.3759531]
[1755893965133,39.76,199.07,199.06,9.68102911]
[1755893965431,39.76,199.09,199.06,9.68102911]
[1755893965604,0.06,199.11,199.08,5.30507601]
[1755893965805,0.06,199.11,199.09,3.6959531]
[1755893966127,0.06,199.11,199.1,5.30507601]
[1755893966331,0.06,199.11,199.09,5.30507601]
[1755893966733,0.06,199.11,199.09,5.98507601]
[1755893967409,0.06,199.11,199.1,6.00507601]
[1755893967606,0.06,199.11,199.1,9.70177981]
[1755893967808,0.06,199.11,199.1,23.58169696]
[1755893968045,0.00895609,199.11,199.1,28.88677297]
[1755893968337,0.00895609,199.11,199.1,23.58169696]
[1755893968745,0.00895609,199.11,199.1,28.88677297]
[1755893969045,0.00895609,199.11,199.1,23.58169696]
[1755893969744,0.00895609,199.11,199.1,28.88677297]
[1755893969909,0.06,199.17,199.11,13.87991715]
[1755893970102,0.06,199.17,199.15,5.30507601]
[1755893970300,0.06,199.17,199.16,3.6967038]
[1755893970552,0.06,199.17,199.16,3.69648478]
[1755893971236,0.77,199.17,199.16,3.69648478]
[1755893971556,0.06,199.17,199.16,3.69648478]
[1755893971931,0.77,199.17,199.16,3.69648478]
[1755893972132,6.07507601,199.17,199.16,3.69648478]
[1755893972354,0.77,199.17,199.16,3.69648478]
[1755893974065,0.06,199.17,199.16,3.69648478]
[1755893974286,0.77,199.17,199.16,3.69648478]
[1755893976630,0.06,199.17,199.16,3.69648478]
[1755893978456,0.06,199.17,199.16,9.70156079]
[1755893979250,0.06,199.17,199.16,4.39648478]
[1755893979453,0.06,199.17,199.16,9.70412143]
[1755893979657,0.06,199.17,199.16,9.00412143]
[1755893980240,0.06,199.17,199.16,3.69904542]
[1755893980543,0.06,199.17,199.16,9.00412143]
[1755893981160,0.06,199.17,199.16,3.69904542]
[1755893981438,0.06,199.17,199.16,9.00412143]
[1755893982642,0.06,199.17,199.16,9.0061232]
[1755893983049,0.06,199.17,199.16,3.70104719]
[1755893985662,6.07507601,199.17,199.16,3.70104719]
[1755893986469,6.07507601,199.17,199.1,5.30507601]
[1755893986674,5.30507601,199.15,199.11,3.70411419]
[1755893986981,39.7,199.14,199.12,3.70411419]
[1755893987190,39.7,199.14,199.13,3.70411419]
[1755893987361,40.41,199.14,199.13,3.70411419]
[1755893987563,45.71507601,199.14,199.13,3.70411419]
[1755893988208,45.71507601,199.14,199.07,0.03]
[1755893988495,5.30507601,199.12,199.08,3.70587434]
[1755893988788,40.41,199.11,199.09,3.70587434]
[1755893989087,40.41,199.11,199.1,3.70585635]
[1755893989306,39.7,199.11,199.1,3.70585635]
[1755893989875,39.7,199.11,199.1,4.40585635]
[1755893990275,39.7,199.11,199.1,3.70585635]
[1755893991201,39.7,199.11,199.1,4.40585635]
[1755893991374,39.68,199.13,199.1,4.40585635]
[1755893991717,39.68,199.13,199.11,3.70585635]
[1755893991868,39.68,199.13,199.12,3.70585635]
[1755893993765,40.39,199.13,199.12,3.70585635]
[1755893995401,39.68,199.13,199.12,3.70585635]
[1755893996282,40.39,199.13,199.12,3.70585635]
[1755893997593,40.39,199.13,199.12,3.70912257]
[1755893998095,40.39,199.13,199.12,3.70910052]
[1755893998393,45.69507601,199.13,199.09,0.03]
[1755893998704,5.30507601,199.11,199.1,3.712794]
[1755893998890,44.98507601,199.11,199.1,3.712794]
[1755893999102,45.69507601,199.11,199.1,3.712794]
[1755893999785,40.39,199.11,199.1,3.712794]
[1755894000184,0.71,199.15,199.1,9.01787001]
[1755894000384,39.68,199.14,199.11,3.712794]
[1755894000587,39.68,199.14,199.1,6.00507601]
[1755894000588,39.68,199.14,199.12,3.712794]
[1755894000792,39.68,199.14,199.13,3.71539311]
[1755894001294,40.39,199.14,199.13,3.71539311]
[1755894001834,45.69507601,199.14,199.13,3.71539311]
[1755894005816,45.69507601,199.14,199.13,3.72990175]
[1755894006491,26.0,199.12,199.11,0.03]
[1755894006696,70.96507601,199.12,199.11,0.03]
[1755894006893,71.67507601,199.12,199.11,0.03]
[1755894007786,0.71,199.12,199.11,0.03]
[1755894008092,45.67507601,199.12,199.11,0.03]
[1755894009521,44.96507601,199.12,199.11,0.03]
[1755894009882,45.67507601,199.12,199.11,0.03]
[1755894011018,40.37,199.12,199.11,0.03]
[1755894011187,45.67507601,199.12,199.11,0.03]
[1755894011394,44.96507601,199.12,199.11,0.03]
[1755894012201,45.67507601,199.12,199.11,0.03]
[1755894012703,44.96507601,199.12,199.11,0.03]
[1755894014740,0.06,199.17,199.11,6.03507601]
[1755894015040,5.36507601,199.17,199.12,6.00507601]
[1755894015225,39.66,199.16,199.13,6.00507601]
[1755894015402,39.66,199.16,199.12,5.30507601]
[1755894015733,39.66,199.16,199.14,0.7]
[1755894015941,39.66,199.16,199.12,5.30507601]
[1755894016141,39.66,199.16,199.15,0.7]
[1755894018416,39.66,199.16,199.15,4.42401961]
[1755894018936,39.66,199.16,199.15,3.72401961]
[1755894019310,45.67507601,199.16,199.15,3.72401961]
[1755894019936,44.96507601,199.16,199.15,3.72401961]
[1755894021217,45.67507601,199.16,199.15,3.72401961]
[1755894023012,45.67507601,199.16,199.13,0.03]
[1755894023217,5.30507601,199.14,199.13,0.03]
[1755894023439,44.94507601,199.14,199.13,0.03]
[1755894023740,45.65507601,199.14,199.13,0.03]
[1755894033842,44.94507601,199.14,199.13,0.03]
[1755894034024,0.06,199.16,199.13,0.7]
[1755894034228,5.30507601,199.15,199.13,0.03]
[1755894034541,39.64,199.15,199.14,0.67]
[1755894034949,39.64,199.15,199.14,4.40424514]
[1755894035852,44.94507601,199.15,199.14,4.40424514]
[1755894036065,44.94507601,199.15,199.14,3.73424514]
[1755894036641,45.63507601,199.15,199.14,3.73424514]
[1755894038542,45.63507601,199.15,199.13,0.03]
[1755894038743,5.99507601,199.14,199.11,0.03]
[1755894038952,5.30507601,199.12,199.11,0.03]
[1755894039358,5.99507601,199.12,199.11,0.03]
[1755894039963,39.62,199.13,199.11,0.03]
[1755894040173,5.30507601,199.12,199.11,0.7]
[1755894040374,5.30507601,199.12,199.11,0.03]
[1755894041232,5.99507601,199.12,199.11,0.03]
[1755894045185,5.30507601,199.12,199.11,0.03]
[1755894045386,39.62,199.13,199.11,0.03]
[1755894045605,5.30507601,199.12,199.11,0.03]
[1755894046129,44.92507601,199.12,199.11,0.03]
[1755894046830,45.61507601,199.12,199.11,0.03]
[1755894048031,44.92507601,199.12,199.11,0.03]
[1755894049533,45.61507601,199.12,199.11,0.03]
[1755894050599,45.61507601,199.12,199.11,3.76612524]
[1755894051203,45.61507601,199.12,199.09,0.03]
[1755894051204,0.28432314,199.11,199.09,0.03]
[1755894051404,76.23015202,199.1,199.09,0.03]
[1755894051607,76.23015202,199.1,199.07,0.03]
[1755894051837,5.30507601,199.08,199.07,0.03]
[1755894052018,44.92507601,199.08,199.07,0.03]
[1755894052214,45.61507601,199.08,199.07,0.03]
[1755894054602,26.0,199.05,199.01,0.67]
[1755894054808,39.62,199.04,199.01,0.67]
[1755894055029,5.30507601,199.02,199.01,0.67]
[1755894055244,44.90507601,199.02,198.98,0.77]
[1755894055538,5.30507601,198.99,198.98,0.1]
[1755894055742,44.90507601,198.99,198.98,0.1]
[1755894056239,44.90507601,198.99,198.98,0.77]
[1755894057008,44.90507601,198.99,198.98,0.1]
[1755894057809,50.21015202,198.99,198.98,0.1]
[1755894058009,44.90507601,198.99,198.98,0.1]
[1755894058453,44.90507601,198.99,198.98,0.76]
[1755894060549,39.6,198.99,198.98,0.76]
[1755894060784,39.62,198.99,198.98,0.76]
[1755894060973,15.786998,199.1,198.98,26.76]
[1755894061173,0.69,199.13,199.03,5.30507601]
[1755894061483,5.30507601,199.08,199.04,0.66]
[1755894061644,5.30507601,199.06,199.04,0.66]
[1755894061840,39.6,199.05,199.01,5.30507601]
[1755894062057,39.6,199.05,199.02,5.30507601]
[1755894062648,39.6,199.05,199.03,0.66]
[1755894063081,39.6,199.05,199.04,0.66]
[1755894063371,39.6,199.05,199.04,4.38172288]
[1755894066275,39.6,199.05,199.04,3.72172288]
[1755894066573,39.6,199.05,199.04,4.38172288]
[1755894066751,39.6,199.05,199.04,3.72172288]
[1755894067364,39.6,199.05,199.04,4.38172288]
[1755894067679,45.59507601,199.05,199.04,3.72172288]
[1755894067860,45.59507601,199.05,199.0,26.0]
[1755894067861,45.59507601,199.05,198.98,0.1]
[1755894068060,45.59507601,199.05,198.99,3.72529814]
[1755894068061,5.30507601,199.0,198.99,3.72529814]
[1755894068240,44.90507601,199.0,198.98,26.1]
[1755894068444,44.90507601,199.0,198.99,4.38514456]
[1755894068786,39.6,199.0,198.99,4.38514456]
[1755894069566,39.6,199.0,198.99,9.69022057]
[1755894070047,39.6,199.0,198.99,4.38514456]